fUST/lending_fUST_20240826
["ID","MTS","AMOUNT","RATE_DAILY","PERIOD"]
[335966318,1724645458793,-500.0,0.0001316,2]
[335966319,1724645458803,-500.0,0.0001316,2]
[335966320,1724645458812,-651.38,0.0001316,2]
[335966321,1724645458822,-1180.48,0.0001316,2]
[335966322,1724645458832,-4146.7,0.0001316,2]
[335966323,1724645458841,-500.0,0.0001316,2]
[335966324,1724645458852,-931.06,0.0001316,2]
[335966325,1724645458861,-500.0,0.0001316,2]
[335966326,1724645458870,-1089.41,0.0001316,2]
[335966327,1724645458879,-549.09,0.0001316,2]
[335966328,1724645458888,-500.0,0.0001316,2]
[335966329,1724645458898,-590.46,0.0001316,2]
[335966330,1724645458907,-500.0,0.0001316,2]
[335966331,1724645458916,-517.52,0.0001316,2]
[335966332,1724645458925,-4166.39,0.0001316,2]
[335966333,1724645458935,-3358.17,0.0001316,2]
[335966334,1724645458945,-716.61,0.0001316,2]
[335966335,1724645458964,-651.97,0.0001316,2]
[335966336,1724645458974,-648.22,0.0001316,2]
[335966337,1724645458983,-34978.0,0.0001316,2]
[335966338,1724645458992,-726.5,0.0001316,2]
[335966339,1724645459002,-521.73176821,0.0001316,2]
[335966340,1724645459011,-500.0,0.0001316,2]
[335966341,1724645459019,-500.0,0.0001316,2]
[335966342,1724645459028,-608.89,0.0001316,2]
[335966343,1724645459038,-500.0,0.0001316,2]
[335966344,1724645459047,-1267.99,0.0001316,2]
[335966345,1724645459057,-500.0,0.0001316,2]
[335966346,1724645459066,-901.99,0.0001316,2]
[335966347,1724645459075,-729.85,0.0001316,2]
[335966348,1724645459085,-890.55,0.0001316,2]
[335966349,1724645459094,-500.0,0.0001316,2]
[335966350,1724645459104,-268.58684156,0.0001316,2]
[335966351,1724645459113,-775.56,0.0001316,2]
[335966352,1724645459123,-874.83,0.0001316,2]
[335966353,1724645459133,-535.28,0.0001316,2]
[335966354,1724645459142,-618.82,0.0001316,2]
[335966355,1724645459152,-559.24,0.0001316,2]
[335966356,1724645459162,-524.35,0.0001316,2]
[335966357,1724645459171,-1320.24,0.0001316,2]
[335966358,1724645459180,-2013.57,0.0001316,2]
[335966359,1724645459190,-947.96,0.0001316,2]
[335966360,1724645459200,-574.56,0.0001316,2]
[335966361,1724645459210,-712.0,0.0001316,2]
[335966362,1724645459220,-500.0,0.0001316,2]
[335966363,1724645459229,-565.4,0.0001316,2]
[335966364,1724645459239,-647.46,0.0001316,2]
[335966365,1724645459248,-676.76,0.0001316,2]
[335966366,1724645459259,-575.35,0.0001316,2]
[335966367,1724645459268,-500.0,0.0001316,2]
[335966368,1724645459278,-1087.34,0.0001316,2]
[335966369,1724645459288,-626.87,0.0001316,2]
[335966370,1724645459298,-500.0,0.0001316,2]
[335966371,1724645459307,-870.51,0.0001316,2]
[335966372,1724645459320,-608.41,0.0001316,2]
[335966373,1724645459329,-503.83,0.0001316,2]
[335966374,1724645459339,-685.54,0.0001316,2]
[335966375,1724645459348,-814.72,0.0001316,2]
[335966376,1724645459357,-500.0,0.0001316,2]
[335966377,1724645459367,-928.43,0.0001316,2]
[335966378,1724645459376,-591.66,0.0001316,2]
[335966379,1724645459385,-500.0,0.0001316,2]
[335966380,1724645459397,-1482.66,0.0001316,2]
[335966381,1724645459407,-1494.93,0.0001316,2]
[335966382,1724645459417,-500.0,0.0001316,2]
[335966383,1724645459427,-1116.442269,0.0001316,2]
[335966384,1724645459436,-500.0,0.0001316,2]
[335966385,1724645459448,-500.0,0.0001316,2]
[335966386,1724645459458,-500.0,0.0001316,2]
[335966387,1724645459467,-2591.66,0.0001316,2]
[335966388,1724645459477,-1116.442269,0.0001316,2]
[335966389,1724645459486,-572.0,0.0001316,2]
[335966390,1724645459495,-776.42,0.0001316,2]
[335966391,1724645459505,-1851.29332,0.00013168,2]
[335966392,1724645459514,-1851.29332,0.00013168,2]
[335966393,1724645459524,-5628.37,0.00013168,2]
[335966394,1724645459533,-500.0,0.00013168,2]
[335966395,1724645459542,-676.73,0.00013168,2]
[335966396,1724645459552,-10603.96,0.00013168,2]
[335966397,1724645459562,-500.0,0.00013168,2]
[335966398,1724645459571,-754.79,0.00013168,2]
[335966399,1724645459581,-1165.79,0.00013168,2]
[335966400,1724645459590,-724.91,0.00013168,2]
[335966401,1724645459600,-500.0,0.00013168,2]
[335966402,1724645459610,-515.05,0.00013169,2]
[335966403,1724645459620,-500.0,0.00013169,2]
[335966404,1724645459629,-644.1,0.00013169,2]
[335966405,1724645459638,-500.0,0.00013169,2]
[335966406,1724645459647,-500.0,0.00013169,2]
[335966407,1724645459657,-798.6,0.00013169,2]
[335966408,1724645459666,-525.94,0.00013169,2]
[335966409,1724645459675,-513.51,0.00013169,2]
[335966410,1724645459684,-1151.09,0.00013169,2]
[335966411,1724645459693,-500.0,0.00013169,2]
[335966412,1724645459702,-798.58,0.00013169,2]
[335966413,1724645459714,-1105.08,0.00013169,2]
[335966414,1724645459723,-265.89654311,0.00013169,2]
[335966415,1724645459734,-500.0,0.00013169,2]
[335966416,1724645459747,-1042.06,0.00013169,2]
[335966417,1724645459757,-500.0,0.00013169,2]
[335966418,1724645459767,-1190.98,0.00013169,2]
[335966419,1724645459779,-500.0,0.00013169,2]
[335966420,1724645459788,-1032.35,0.00013169,2]
[335966421,1724645459797,-678.44,0.00013169,2]
[335966422,1724645459806,-872.9,0.00013169,2]
[335966423,1724645459816,-507.93,0.00013169,2]
[335966424,1724645459825,-500.0,0.00013169,2]
[335966425,1724645459835,-958.35,0.00013169,2]
[335966426,1724645459844,-531.67,0.00013169,2]
[335966427,1724645459854,-1084.3,0.00013169,2]
[335966428,1724645459864,-847.27,0.00013169,2]
[335966429,1724645459873,-861.91,0.00013169,2]
[335966430,1724645459882,-733.62,0.00013169,2]
[335966431,1724645459891,-500.0,0.00013169,2]
[335966432,1724645459900,-545.39,0.00013169,2]
[335966433,1724645459913,-500.0,0.00013169,2]
[335966434,1724645459935,-500.0,0.00013169,2]
[335966435,1724645459949,-811.25,0.00013169,2]
[335966436,1724645459960,-1203.84,0.00013169,2]
[335966437,1724645459969,-645.12,0.00013169,2]
[335966438,1724645459978,-1099.71,0.00013169,2]
[335966439,1724645459987,-822.32,0.00013169,2]
[335966440,1724645459996,-1079.64,0.00013169,2]
[335966441,1724645460007,-528.94,0.00013169,2]
[335966442,1724645460017,-822.12,0.00013169,2]
[335966443,1724645460026,-700.57,0.00013169,2]
[335966444,1724645460036,-539.05,0.00013169,2]
[335966445,1724645460045,-548.49,0.00013169,2]
[335966446,1724645460055,-692.07,0.00013169,2]
[335966447,1724645460066,-803.88,0.00013169,2]
[335966448,1724645460075,-1086.52,0.00013169,2]
[335966449,1724645460085,-508.14,0.00013169,2]
[335966450,1724645460096,-500.0,0.0001317,2]
[335966451,1724645460105,-593.89,0.0001317,2]
[335966452,1724645460115,-500.0,0.0001317,2]
[335966453,1724645460124,-545.01,0.0001317,2]
[335966454,1724645460134,-500.0,0.0001317,2]
[335966455,1724645460143,-500.0,0.0001317,2]
[335966456,1724645460153,-500.0,0.0001317,2]
[335966457,1724645460162,-500.0,0.0001317,2]
[335966458,1724645460171,-500.0,0.0001317,2]
[335966459,1724645460180,-500.0,0.0001317,2]
[335966460,1724645460190,-514.07,0.0001317,2]
[335966461,1724645460199,-500.0,0.0001317,2]
[335966462,1724645460208,-500.0,0.0001317,2]
[335966463,1724645460217,-501.97,0.0001317,2]
[335966464,1724645460227,-174.18260787,0.0001317,2]
[335966465,1724645460236,-500.0,0.0001317,2]
[335966466,1724645460245,-500.0,0.0001317,2]
[335966467,1724645460255,-500.0,0.0001317,2]
[335966468,1724645460264,-500.0,0.0001317,2]
[335966469,1724645460273,-500.0,0.0001317,2]
[335966470,1724645460283,-500.0,0.0001317,2]
[335966471,1724645460293,-724.1,0.0001317,2]
[335966472,1724645460302,-500.0,0.0001317,2]
[335966473,1724645460311,-656.82,0.0001317,2]
[335966474,1724645460324,-500.0,0.0001317,2]
[335966475,1724645460333,-500.0,0.0001317,2]
[335966476,1724645460343,-500.0,0.0001317,2]
[335966477,1724645460352,-500.0,0.0001317,2]
[335966478,1724645460362,-500.0,0.0001317,2]
[335966479,1724645460371,-500.0,0.0001317,2]
[335966480,1724645460380,-500.0,0.0001317,2]
[335966481,1724645460389,-523.37,0.0001317,2]
[335966482,1724645460400,-619.4,0.0001317,2]
[335966483,1724645460409,-500.0,0.0001317,2]
[335966484,1724645460419,-500.0,0.0001317,2]
[335966485,1724645460428,-185.35877228,0.0001317,2]
[335966486,1724645460437,-500.0,0.0001317,2]
[335966487,1724645460446,-500.0,0.0001317,2]
[335966488,1724645460455,-565.21,0.0001317,2]
[335966489,1724645460464,-500.0,0.0001317,2]
[335966490,1724645460473,-726.33,0.0001317,2]
[335966491,1724645460482,-677.46,0.0001317,2]
[335966492,1724645460492,-798.84,0.0001317,2]
[335966493,1724645460502,-500.0,0.0001317,2]
[335966494,1724645460511,-500.0,0.0001317,2]
[335966495,1724645460520,-656.44,0.0001317,2]
[335966496,1724645460529,-500.0,0.0001317,2]
[335966497,1724645460539,-1151.91,0.0001317,2]
[335966498,1724645460548,-620.1,0.0001317,2]
[335966499,1724645460558,-666.21,0.0001317,2]
[335966500,1724645460568,-500.0,0.0001317,2]
[335966501,1724645460578,-233.18437804,0.0001317,2]
[335966502,1724645460587,-500.0,0.0001317,2]
[335966503,1724645460755,-248.21792377,0.0001317,2]
[335966504,1724645460765,-1276.08,0.0001317,2]
[335966505,1724645460774,-765.97,0.0001317,2]
[335966506,1724645460783,-500.0,0.0001317,2]
[335966507,1724645460793,-478.66086169,0.0001317,2]
[335966508,1724645460802,-658.67,0.0001317,2]
[335966509,1724645460812,-500.0,0.0001317,2]
[335966510,1724645460821,-1851.29332,0.0001317,2]
[335966511,1724645460833,-621.86,0.0001317,2]
[335966512,1724645460842,-1851.29332,0.0001317,2]
[335966513,1724645460852,-931.11,0.0001317,2]
[335966514,1724645460861,-688.42,0.0001317,2]
[335966515,1724645460871,-808.32,0.0001317,2]
[335966516,1724645460880,-500.0,0.0001317,2]
[335966517,1724645460889,-500.0,0.0001317,2]
[335966518,1724645460899,-500.0,0.0001317,2]
[335966519,1724645460909,-500.0,0.0001317,2]
[335966520,1724645460918,-500.0,0.0001317,2]
[335966521,1724645460927,-500.0,0.0001317,2]
[335966522,1724645460936,-266.72876783,0.00013192,2]
[335966523,1724645460946,-1975.25186167,0.00013192,2]
[335966524,1724645460956,-420.0,0.00013221,2]
[335966525,1724645460965,-187.873,0.00013245,2]
[335966526,1724645460975,-150.374,0.00013245,2]
[335966527,1724645460985,-420.0,0.00013248,2]
[335966528,1724645460994,-7793.10174847,0.00013257,2]
[335966529,1724645461003,-285.0,0.00013304,2]
[335966530,1724645461013,-285.0,0.00013304,2]
[335966531,1724645461022,-285.0,0.00013304,2]
[335966532,1724645461031,-285.0,0.00013304,2]
[335966533,1724645461041,-285.0,0.00013304,2]
[335966534,1724645461050,-285.0,0.00013304,2]
[335966535,1724645461060,-285.0,0.00013304,2]
[335966536,1724645461070,-285.0,0.00013304,2]
[335966537,1724645461080,-285.0,0.00013304,2]
[335966538,1724645461089,-285.0,0.00013304,2]
[335966539,1724645461099,-285.0,0.00013304,2]
[335966540,1724645461109,-285.0,0.00013304,2]
[335966541,1724645461118,-285.0,0.00013304,2]
[335966542,1724645461127,-285.0,0.00013304,2]
[335966543,1724645461136,-523.0,0.00013304,2]
[335966544,1724645461146,-523.0,0.00013304,2]
[335966545,1724645461155,-523.0,0.00013304,2]
[335966546,1724645461165,-523.0,0.00013304,2]
[335966547,1724645461174,-523.0,0.00013304,2]
[335966548,1724645461184,-523.0,0.00013304,2]
[335966549,1724645461194,-523.0,0.00013304,2]
[335966550,1724645461205,-523.0,0.00013304,2]
[335966551,1724645461223,-523.0,0.00013304,2]
[335966552,1724645461233,-523.0,0.00013304,2]
[335966553,1724645461242,-523.0,0.00013304,2]
[335966554,1724645461251,-523.0,0.00013304,2]
[335966555,1724645461261,-523.0,0.00013304,2]
[335966556,1724645461270,-523.0,0.00013304,2]
[335966557,1724645461280,-285.0,0.00013304,2]
[335966558,1724645461290,-285.0,0.00013304,2]
[335966559,1724645461300,-285.0,0.00013304,2]
[335966560,1724645461309,-285.0,0.00013304,2]
[335966561,1724645461321,-285.0,0.00013304,2]
[335966562,1724645461331,-285.0,0.00013304,2]
[335966563,1724645461340,-285.0,0.00013304,2]
[335966564,1724645461350,-285.0,0.00013304,2]
[335966565,1724645461362,-285.0,0.00013304,2]
[335966566,1724645461371,-285.0,0.00013304,2]
[335966567,1724645461381,-285.0,0.00013304,2]
[335966568,1724645461391,-285.0,0.00013304,2]
[335966569,1724645461400,-285.0,0.00013304,2]
[335966570,1724645461412,-285.0,0.00013304,2]
[335966571,1724645461421,-523.0,0.00013304,2]
[335966572,1724645461430,-523.0,0.00013304,2]
[335966573,1724645461441,-523.0,0.00013304,2]
[335966574,1724645461450,-523.0,0.00013304,2]
[335966575,1724645461459,-523.0,0.00013304,2]
[335966576,1724645461469,-523.0,0.00013304,2]
[335966577,1724645461478,-523.0,0.00013304,2]
[335966578,1724645461487,-523.0,0.00013304,2]
[335966579,1724645461497,-523.0,0.00013304,2]
[335966580,1724645461506,-523.0,0.00013304,2]
[335966581,1724645461516,-523.0,0.00013304,2]
[335966582,1724645461525,-523.0,0.00013304,2]
[335966583,1724645461534,-523.0,0.00013304,2]
[335966584,1724645461543,-523.0,0.00013304,2]
[335966585,1724645461553,-285.0,0.00013304,2]
[335966586,1724645461562,-285.0,0.00013304,2]
[335966587,1724645461571,-285.0,0.00013304,2]
[335966588,1724645461580,-285.0,0.00013304,2]
[335966589,1724645461590,-285.0,0.00013304,2]
[335966590,1724645461599,-285.0,0.00013304,2]
[335966591,1724645461609,-285.0,0.00013304,2]
[335966592,1724645461619,-285.0,0.00013304,2]
[335966593,1724645461628,-285.0,0.00013304,2]
[335966594,1724645461637,-285.0,0.00013304,2]
[335966595,1724645461646,-285.0,0.00013304,2]
[335966596,1724645461656,-285.0,0.00013304,2]
[335966597,1724645461665,-285.0,0.00013304,2]
[335966598,1724645461674,-285.0,0.00013304,2]
[335966599,1724645461684,-523.0,0.00013304,2]
[335966600,1724645461694,-523.0,0.00013304,2]
[335966601,1724645461708,-523.0,0.00013304,2]
[335966602,1724645461722,-523.0,0.00013304,2]
[335966603,1724645461732,-523.0,0.00013304,2]
[335966604,1724645461741,-523.0,0.00013304,2]
[335966605,1724645461751,-523.0,0.00013304,2]
[335966606,1724645461761,-523.0,0.00013304,2]
[335966607,1724645461770,-523.0,0.00013304,2]
[335966608,1724645461779,-523.0,0.00013304,2]
[335966609,1724645461789,-523.0,0.00013304,2]
[335966610,1724645461799,-523.0,0.00013304,2]
[335966611,1724645461809,-523.0,0.00013304,2]
[335966612,1724645461819,-523.0,0.00013304,2]
[335966613,1724645461828,-284.0,0.00013304,2]
[335966614,1724645461838,-284.0,0.00013304,2]
[335966615,1724645461848,-284.0,0.00013304,2]
[335966616,1724645461860,-284.0,0.00013304,2]
[335966617,1724645461871,-284.0,0.00013304,2]
[335966618,1724645461880,-284.0,0.00013304,2]
[335966619,1724645461890,-284.0,0.00013304,2]
[335966620,1724645461899,-284.0,0.00013304,2]
[335966621,1724645461910,-284.0,0.00013304,2]
[335966622,1724645461920,-284.0,0.00013304,2]
[335966623,1724645461931,-284.0,0.00013304,2]
[335966624,1724645461940,-284.0,0.00013304,2]
[335966625,1724645461956,-284.0,0.00013304,2]
[335966626,1724645461966,-284.0,0.00013304,2]
[335966627,1724645461974,-522.0,0.00013304,2]
[335966628,1724645461983,-522.0,0.00013304,2]
[335966629,1724645461993,-522.0,0.00013304,2]
[335966630,1724645462002,-522.0,0.00013304,2]
[335966631,1724645462011,-522.0,0.00013304,2]
[335966632,1724645462020,-522.0,0.00013304,2]
[335966633,1724645462029,-522.0,0.00013304,2]
[335966634,1724645462039,-522.0,0.00013304,2]
[335966635,1724645462048,-522.0,0.00013304,2]
[335966636,1724645462058,-522.0,0.00013304,2]
[335966637,1724645462067,-522.0,0.00013304,2]
[335966638,1724645462077,-522.0,0.00013304,2]
[335966639,1724645462087,-522.0,0.00013304,2]
[335966640,1724645462097,-522.0,0.00013304,2]
[335966641,1724645462106,-1116.442269,0.00013304,2]
[335966642,1724645462115,-1116.442269,0.00013304,2]
[335966643,1724645462125,-285.0,0.00013307,2]
[335966644,1724645462134,-285.0,0.00013307,2]
[335966645,1724645462144,-285.0,0.00013307,2]
[335966646,1724645462153,-285.0,0.00013307,2]
[335966647,1724645462163,-285.0,0.00013307,2]
[335966648,1724645462172,-285.0,0.00013307,2]
[335966649,1724645462182,-285.0,0.00013307,2]
[335966650,1724645462191,-285.0,0.00013307,2]
[335966651,1724645462205,-285.0,0.00013307,2]
[335966652,1724645462215,-285.0,0.00013307,2]
[335966653,1724645462225,-285.0,0.00013307,2]
[335966654,1724645462235,-285.0,0.00013307,2]
[335966655,1724645462246,-285.0,0.00013307,2]
[335966656,1724645462257,-523.0,0.00013307,2]
[335966657,1724645462267,-523.0,0.00013307,2]
[335966658,1724645462276,-523.0,0.00013307,2]
[335966659,1724645462285,-523.0,0.00013307,2]
[335966660,1724645462295,-523.0,0.00013307,2]
[335966661,1724645462305,-523.0,0.00013307,2]
[335966662,1724645462315,-523.0,0.00013307,2]
[335966663,1724645462328,-523.0,0.00013307,2]
[335966664,1724645462337,-523.0,0.00013307,2]
[335966665,1724645462347,-523.0,0.00013307,2]
[335966666,1724645462356,-523.0,0.00013307,2]
[335966667,1724645462366,-523.0,0.00013307,2]
[335966668,1724645462376,-523.0,0.00013307,2]
[335966669,1724645462385,-308.8390755,0.00013333,2]
[335966670,1724645462395,-154.90118129,0.00013333,2]
[335966671,1724645462406,-522.0,0.00013339,2]
[335966672,1724645462416,-522.0,0.00013339,2]
[335966673,1724645462426,-522.0,0.00013339,2]
[335966674,1724645462435,-522.0,0.00013339,2]
[335966675,1724645462445,-522.0,0.00013339,2]
[335966676,1724645462455,-522.0,0.00013339,2]
[335966677,1724645462464,-522.0,0.00013339,2]
[335966678,1724645462474,-522.0,0.00013339,2]
[335966679,1724645462484,-522.0,0.00013339,2]
[335966680,1724645462493,-522.0,0.00013339,2]
[335966681,1724645462502,-522.0,0.00013339,2]
[335966682,1724645462511,-522.0,0.00013339,2]
[335966683,1724645462521,-522.0,0.00013339,2]
[335966684,1724645462531,-522.0,0.00013339,2]
[335966685,1724645462541,-284.0,0.00013339,2]
[335966686,1724645462551,-284.0,0.00013339,2]
[335966687,1724645462560,-284.0,0.00013339,2]
[335966688,1724645462569,-284.0,0.00013339,2]
[335966689,1724645462579,-284.0,0.00013339,2]
[335966690,1724645462589,-284.0,0.00013339,2]
[335966691,1724645462599,-284.0,0.00013339,2]
[335966692,1724645462609,-284.0,0.00013339,2]
[335966693,1724645462618,-284.0,0.00013339,2]
[335966694,1724645462627,-284.0,0.00013339,2]
[335966695,1724645462636,-284.0,0.00013339,2]
[335966696,1724645462646,-284.0,0.00013339,2]
[335966697,1724645462655,-284.0,0.00013339,2]
[335966698,1724645462664,-284.0,0.00013339,2]
[335966699,1724645462674,-602.05167627,0.00013376,2]
[335966700,1724645462684,-298.46820211,0.00013413,2]
[335966701,1724645462694,-742.68,0.00013413,2]
[335966702,1724645462704,-873.03,0.00013424,2]
[335966703,1724645462714,-8163.02,0.00013424,2]
[335966704,1724645462724,-500.0,0.00013424,2]
[335966705,1724645462733,-737.56,0.00013424,2]
[335966706,1724645462742,-500.0,0.00013424,2]
[335966707,1724645462751,-665.66,0.00013424,2]
[335966708,1724645462762,-1018.93,0.00013424,2]
[335966709,1724645462771,-12437.77,0.00013424,2]
[335966710,1724645462781,-633.34,0.00013424,2]
[335966711,1724645462791,-678.15,0.00013424,2]
[335966712,1724645462800,-415.177382,0.00013425,2]
[335966713,1724645462809,-500.0,0.00013433,2]
[335966714,1724645462820,-701.99,0.00013433,2]
[335966715,1724645462829,-647.38,0.00013433,2]
[335966716,1724645462838,-857.91,0.00013433,2]
[335966717,1724645462847,-500.0,0.00013433,2]
[335966718,1724645462857,-645.95,0.00013433,2]
[335966719,1724645462868,-500.0,0.00013433,2]
[335966720,1724645462878,-500.0,0.00013433,2]
[335966721,1724645462889,-500.0,0.00013433,2]
[335966722,1724645462899,-500.0,0.00013433,2]
[335966723,1724645462909,-500.0,0.00013433,2]
[335966724,1724645462918,-500.0,0.00013433,2]
[335966725,1724645462928,-500.0,0.00013433,2]
[335966726,1724645462938,-500.0,0.00013433,2]
[335966727,1724645462948,-541.23,0.00013433,2]
[335966728,1724645462957,-500.0,0.00013433,2]
[335966729,1724645462967,-500.0,0.00013433,2]
[335966730,1724645462976,-500.0,0.00013433,2]
[335966731,1724645462987,-500.0,0.00013433,2]
[335966732,1724645462997,-500.0,0.00013433,2]
[335966733,1724645463007,-928.8,0.00013433,2]
[335966734,1724645463017,-1004.93,0.00013433,2]
[335966735,1724645463026,-500.0,0.00013433,2]
[335966736,1724645463036,-500.0,0.00013433,2]
[335966737,1724645463046,-500.0,0.00013433,2]
[335966738,1724645463056,-565.63,0.00013433,2]
[335966739,1724645463066,-713.19,0.00013433,2]
[335966740,1724645463076,-500.0,0.00013433,2]
[335966741,1724645463086,-449.25600094,0.00013433,2]
[335966742,1724645463095,-822.12,0.00013433,2]
[335966743,1724645463105,-760.66,0.00013433,2]
[335966744,1724645463115,-564.11,0.00013433,2]
[335966745,1724645463125,-825.52,0.00013433,2]
[335966746,1724645463135,-628.7,0.00013433,2]
[335966747,1724645463145,-942.5,0.00013433,2]
[335966748,1724645463155,-585.68,0.00013433,2]
[335966749,1724645463164,-500.0,0.00013433,2]
[335966750,1724645463173,-500.0,0.00013433,2]
[335966751,1724645463183,-567.0,0.00013433,2]
[335966752,1724645463194,-500.0,0.00013433,2]
[335966753,1724645463204,-500.0,0.00013433,2]
[335966754,1724645463260,-1159.41,0.00013433,2]
[335966755,1724645463270,-1851.29332,0.00013433,2]
[335966756,1724645463279,-1851.29332,0.00013433,2]
[335966757,1724645463289,-500.0,0.00013433,2]
[335966758,1724645463299,-634.99,0.00013433,2]
[335966759,1724645463308,-635.4,0.00013433,2]
[335966760,1724645463320,-500.0,0.00013433,2]
[335966761,1724645463329,-1089.03,0.00013433,2]
[335966762,1724645463338,-500.0,0.00013433,2]
[335966763,1724645463347,-500.0,0.00013433,2]
[335966764,1724645463356,-975.63,0.00013433,2]
[335966765,1724645463365,-500.0,0.00013433,2]
[335966766,1724645463374,-510.56,0.00013433,2]
[335966767,1724645463383,-500.0,0.00013433,2]
[335966768,1724645463393,-500.0,0.00013433,2]
[335966769,1724645463402,-500.0,0.00013433,2]
[335966770,1724645463411,-500.0,0.00013433,2]
[335966771,1724645463420,-500.0,0.00013433,2]
[335966772,1724645463428,-693.12,0.00013433,2]
[335966773,1724645463437,-500.0,0.00013433,2]
[335966774,1724645463447,-565.97,0.00013433,2]
[335966775,1724645463456,-500.0,0.00013433,2]
[335966776,1724645463465,-500.0,0.00013433,2]
[335966777,1724645463475,-500.0,0.00013433,2]
[335966778,1724645463485,-500.0,0.00013433,2]
[335966779,1724645463494,-904.66,0.00013433,2]
[335966780,1724645463503,-303.36015944,0.00013433,2]
[335966781,1724645463512,-500.0,0.00013433,2]
[335966782,1724645463520,-500.0,0.00013433,2]
[335966783,1724645463530,-500.0,0.00013433,2]
[335966784,1724645463539,-500.0,0.00013433,2]
[335966785,1724645463548,-657.64,0.00013433,2]
[335966786,1724645463557,-531.49,0.00013433,2]
[335966787,1724645463566,-500.0,0.00013433,2]
[335966788,1724645463575,-1035.4,0.00013433,2]
[335966789,1724645463584,-500.0,0.00013433,2]
[335966790,1724645463593,-500.0,0.00013433,2]
[335966791,1724645463601,-500.0,0.00013433,2]
[335966792,1724645463611,-500.0,0.00013433,2]
[335966793,1724645463620,-583.67,0.00013433,2]
[335966794,1724645463629,-524.33,0.00013433,2]
[335966795,1724645463637,-500.0,0.00013433,2]
[335966796,1724645463646,-808.42,0.00013433,2]
[335966797,1724645463655,-500.0,0.00013433,2]
[335966798,1724645463665,-500.0,0.00013433,2]
[335966799,1724645463674,-500.0,0.00013433,2]
[335966800,1724645463684,-545.62,0.00013433,2]
[335966801,1724645463694,-500.0,0.00013433,2]
[335966802,1724645463703,-500.0,0.00013433,2]
[335966803,1724645463713,-717.4,0.00013433,2]
[335966804,1724645463722,-648.79,0.00013433,2]
[335966805,1724645463731,-803.68,0.00013433,2]
[335966806,1724645463740,-500.0,0.00013433,2]
[335966807,1724645463749,-12558.9,0.00013433,2]
[335966808,1724645463759,-500.0,0.00013433,2]
[335966809,1724645463768,-706.57,0.00013433,2]
[335966810,1724645463778,-382.98761858,0.00013433,2]
[335966811,1724645463786,-500.0,0.00013433,2]
[335966812,1724645463796,-3330.93,0.00013433,2]
[335966813,1724645463804,-3142.16,0.00013433,2]
[335966814,1724645463813,-500.0,0.00013433,2]
[335966815,1724645463822,-1606.61,0.00013433,2]
[335966816,1724645463831,-500.0,0.00013433,2]
[335966817,1724645463841,-1138.23,0.00013433,2]